Cogmind - Beta 16.1 @@@ ROGUE MODE // 2026.03.21 @ 13:57:14 Player: delto Result: Self-destructed Performance ------------- Evolutions (3) 1500 Regions Visited (7) 1400 Robots Destroyed (32) 160 Value Destroyed (822) 822 Prototype IDs (3) 60 Alien Tech Used (0) 0 Bonus (330) 330 TOTAL SCORE: 4272 Bonus ------- Follower Combat Kills 130 Entered Garrisons 200 Cogmind --------- Core Integrity 379/700 Matter 300/300 Energy 10/100 System Corruption 0% Temperature Warm (118) Movement Core (100) Ox1 Location -7/Garrison Parts ------- > --- POWER (2) -------- (None) > --- PROPULSION (4) --- Flight Unit > --- UTILITY (5) ------ Small Storage Unit Advanced Weight Redist. System > --- WEAPON (2) ------- (None) > --- INVENTORY (8) ---- Light Nuclear Core Large Battery (200) High-capacity Matter Pod (200) High-capacity Matter Pod (165) Weight Redist. System Hardlight Generator Particle Gun Peak State ------------ > --- POWER ------------ Light Nuclear Core Light Nuclear Core > --- PROPULSION ------- Flight Unit Flight Unit VTOL Module Cesium-ion Thruster > --- UTILITY ---------- Small Storage Unit Advanced Weight Redist. System Improved Shield Generator > --- WEAPON ----------- Makeshift Shrapnel Gun Assault Cannon > --- INVENTORY -------- Light Nuclear Core Large Battery High-capacity Battery High-capacity Matter Pod High-capacity Matter Pod Weight Redist. System Hardlight Generator [Rating: 29] Favorites ----------- Power Light Nuclear Core Engine Light Ion Engine Power Core Light Nuclear Core Propulsion Flight Unit Treads Light Treads Wheel Compact Wheel Hover Unit Hover Unit Flight Unit Flight Unit Utility Small Storage Unit Device Weight Redist. System Storage Small Storage Unit Processor Transport Network Coupler Protection Light Armor Plating Weapon Small Laser Energy Gun Small Laser Ballistic Gun Autogun Ballistic Cannon Assault Cannon Launcher Grenade Launcher Build | -11 -10 -10 -9 -9 -8 -7 -7 ------- Run | Yrd Mat Min Mat Min Mat Fac Gar Slots Evolved 6 | . . . 2 . 2 2 . Power 1 | . . . . . 1 . . Propulsion 2 | . . . 2 . . . . Utility 3 | . . . . . 1 2 . Weapon . | . . . . . . . . Parts Attached 48 | 7 14 5 8 . 7 . 7 Power 8 | 1 2 . 2 . 2 . 1 Engine 5 | 1 1 . 2 . 1 . . Core 3 | . 1 . . . 1 . 1 Reactor . | . . . . . . . . Propulsion 16 | 2 4 3 3 . 1 . 3 Treads 2 | 1 1 . . . . . . Leg . | . . . . . . . . Wheel 2 | 1 1 . . . . . . Hover 2 | . 2 . . . . . . Flight 10 | . . 3 3 . 1 . 3 Utility 13 | 2 6 . 1 . 3 . 1 Device 7 | 1 3 . . . 2 . 1 Storage 2 | 1 . . 1 . . . . Processor 3 | . 3 . . . . . . Hackware . | . . . . . . . . Protection 1 | . . . . . 1 . . Artifact . | . . . . . . . . Weapon 11 | 2 2 2 2 . 1 . 2 Energy Gun 2 | . 2 . . . . . . Energy Cannon . | . . . . . . . . Ballistic Gun 5 | 2 . 1 1 . . . 1 Ballistic Cannon 1 | . . . . . . . 1 Launcher 3 | . . 1 1 . 1 . . Special Weapon . | . . . . . . . . Impact Weapon . | . . . . . . . . Slashing Weapon . | . . . . . . . . Piercing Weapon . | . . . . . . . . Special Melee Weapon . | . . . . . . . . Unidentified Prototypes . | . . . . . . . . Parts Lost 26 | . 3 2 4 . 5 . 12 Power 6 | . . . 2 . 2 . 2 Propulsion 11 | . 1 2 1 . 2 . 5 Utility 4 | . 2 . . . 1 . 1 Weapon 5 | . . . 1 . . . 4 Highest Loss Streak 8 | . 1 1 2 . 4 . 8 To Critical Strikes 1 | . . . . . . . 1 Average Backups 6 | 4 5 4 6 7 6 7 6 Power 1 | 1 1 1 1 1 . . . Propulsion . | 2 1 1 . . . 1 . Utility 2 | . 1 1 3 5 4 3 4 Weapon 1 | . 1 1 1 1 2 2 1 Tool/Special . | . . . . . . . . Unused Backups 33 | . 17 3 . . 2 3 8 Power 6 | . 5 . . . . . 1 Propulsion 2 | . 2 . . . . . . Utility 13 | . 1 1 . . 2 3 6 Weapon 12 | . 9 2 . . . . 1 Tool/Special . | . . . . . . . . Average Slot Usage (%) 84 | . 89 93 92 100 93 61 66 Engine 3 | . 3 . 4 11 14 . . Core 8 | . 10 14 6 . . 7 10 Wheel 1 | . 3 . . . . . . Hover 4 | . 15 1 . . . . . Flight 20 | . . 20 37 44 35 23 27 Device 10 | . 7 14 11 11 10 7 11 Storage 7 | . 10 . 9 11 7 7 7 Processor 5 | . 7 14 1 . . . . Energy Gun 7 | . 18 10 . . . . . Ballistic Gun 7 | . 6 4 11 11 9 7 3 Launcher 6 | . . 12 11 11 9 7 1 Peak Build Rating 29 | 9 11 10 13 12 19 19 29 Average Rating 12 | 5 9 9 12 12 17 18 21 On Entrance 11 | . 9 9 10 12 12 18 18 Avg Prop Armor Cover (%) 14 | 15 14 . . . . . . Naked Turns . | . . . . . . . . Heaviest Build 26 | 13 13 9 16 14 23 19 26 Greatest Support 26 | 20 20 14 22 22 26 22 26 Greatest Overweight (x) 2 | . 2 . . . . . . Average Overweight (x) . | . . . . . . . . Largest Inventory Capacity 8 | 8 8 5 8 8 8 8 8 Average Capacity 7 | 7 7 5 7 8 7 8 8 Most Carried 8 | 6 8 5 8 7 8 8 8 Average Carried 6 | 4 5 4 7 7 6 7 6 Final Capacity 8 | 8 5 5 8 8 8 8 8 Final Carried 8 | 6 5 5 7 7 7 8 7 Class Distribution -------------------- 36% | Mutant 26% | Scavenger-Mutant 23% | Sprinter 13% | Scavenger-Sprinter Dominant Class ---------------- Mutant | -10/Materials Mutant | -10/Mines Scavenger-Mutant | -9/Materials Scavenger-Sprinter | -9/Mines Scavenger-Sprinter | -8/Materials Sprinter | -7/Factory Sprinter | -7/Garrison Resources | -11 -10 -10 -9 -9 -8 -7 -7 ----------- Run | Yrd Mat Min Mat Min Mat Fac Gar Matter Collected 1111 | 290 183 124 51 . . . 463 Remotely . | . . . . . . . . Salvage Created 598 | 99 292 43 67 . 1 . 96 Parts 60 | 4 24 15 7 . 4 . 6 Haulers Intercepted 1 | . 1 . . . . . . Recyclers Shooed 1 | . 1 . . . . . . Parts Field Recycled . | . . . . . . . . Retrieved Matter . | . . . . . . . . Parts Self-Destructed . | . . . . . . . . Prevented . | . . . . . . . . Parts Restored . | . . . . . . . . Kills | -11 -10 -10 -9 -9 -8 -7 -7 ------- Run | Yrd Mat Min Mat Min Mat Fac Gar Combat Hostiles Destroyed 23 | . 5 9 5 . . . 4 Guns 7 | . 5 . . . . . 2 Cannons 1 | . . . . . . . 1 AOE 15 | . . 9 5 . . . 1 Classes Destroyed 9 | 2 4 1 1 . 1 . . Worker 2 | . 1 . 1 . . . . Tunneler 3 | 1 1 1 . . . . . Hauler 1 | . 1 . . . . . . Recycler 1 | 1 . . . . . . . Operator 1 | . . . . . 1 . . Watcher 1 | . 1 . . . . . . Swarmer 14 | . . 9 4 . . . 1 Grunt 8 | . 5 . . . . . 3 Sentry 1 | . . . 1 . . . . Best Kill Streak 5 | 1 4 4 5 . 1 . 2 Combat Bots Only 4 | . 3 3 4 . . . 2 Max Kills in Single Turn 3 | 1 1 3 3 . 1 . 1 Gunslinging . | . . . . . . . . Exploded 2 | . . 2 2 . . . 1 Melee . | . . . . . . . . Uniques/NPCs Destroyed . | . . . . . . . . Combat | -11 -10 -10 -9 -9 -8 -7 -7 -------- Run | Yrd Mat Min Mat Min Mat Fac Gar Hostile Shots Fired 235 | . 38 14 15 . 39 21 108 Missed 95 | . 15 5 6 . 16 15 38 Hits 140 | . 23 9 9 . 23 6 70 Projectile 140 | . 23 9 9 . 23 6 70 Critical Strikes 7 | . . . . . 2 . 5 Damage Taken 2006 | . 329 159 186 . 371 57 904 Core 532 | . 27 53 72 . 59 34 287 Absorbed by Shields 199 | . . . . . . . 199 Core Remaining (%) 84 | 100 . 68 . 82 89 . . Volleys Fired 88 | 10 41 9 12 . 5 . 11 Largest 2 | 2 2 1 2 . 1 . 2 Hottest 80 | 40 80 30 53 . 36 . 61 Shots Fired 155 | 20 82 9 19 . 5 . 20 Gun 119 | 20 82 . 8 . . . 9 Cannon 10 | . . . . . . . 10 Launcher 26 | . . 9 11 . 5 . 1 Special . | . . . . . . . . Kinetic 85 | 20 38 . 8 . . . 19 Thermal 44 | . 44 . . . . . . Explosive 26 | . . 9 11 . 5 . 1 Electromagnetic . | . . . . . . . . Robot Hit Streak 10 | 3 10 3 6 . . . 5 Robot Miss Streak 5 | 2 4 2 1 . . . 5 Penetration Max . | . . . . . . . . Secondary Targets 1 | . 1 . . . . . . Max Gunslinging Chain 1 | . 1 . . . . . . Shots Hit Robots 85 | 11 50 5 8 . . . 11 Core Hits 56 | 4 21 9 11 . 3 . 8 Critical Kills . | . . . . . . . . Critical Parts Destroyed . | . . . . . . . . Critical Strikes . | . . . . . . . . Melee Attacks . | . . . . . . . . Impact . | . . . . . . . . Slashing . | . . . . . . . . Piercing . | . . . . . . . . Sneak Attacks . | . . . . . . . . Combat Hostiles . | . . . . . . . . Follow-up Attacks . | . . . . . . . . Damage Inflicted 1924 | 80 524 420 490 . 66 . 344 Guns 805 | 80 524 . 56 . . . 145 Cannons 97 | . . . . . . . 97 Explosions 1022 | . . 420 434 . 66 . 102 Melee . | . . . . . . . . Ramming . | . . . . . . . . Kinetic 600 | 80 222 . 56 . . . 242 Thermal 302 | . 302 . . . . . . Explosive 1022 | . . 420 434 . 66 . 102 Electromagnetic . | . . . . . . . . Impact . | . . . . . . . . Slashing . | . . . . . . . . Piercing . | . . . . . . . . Highest Corruption 1 | . 1 1 1 1 . . . Average Corruption 1 | . 1 1 1 1 . . . Corruption Purged . | . . . . . . . . Corruption Blocked . | . . . . . . . . Effects 6 | . 2 3 1 . . . . Message Errors 2 | . . 1 1 . . . . Heat Flow Errors 1 | . . 1 . . . . . Energy Discharges 2 | . 1 1 . . . . . Data Loss (minor) 1 | . 1 . . . . . . Overload Shots . | . . . . . . . . Overflow Damage 33 | . . 19 14 . . . . Projectiles . | . . . . . . . . Explosions 33 | . . 19 14 . . . . Melee . | . . . . . . . . Knockbacks . | . . . . . . . . Impact . | . . . . . . . . Kinetic . | . . . . . . . . Secondary . | . . . . . . . . Self-Inflicted Damage 202 | . . 88 91 . 23 . . Shots 9 | . . 3 5 . 1 . . Rammed . | . . . . . . . . Targets Rammed . | . . . . . . . . Kicked . | . . . . . . . . Crushed . | . . . . . . . . Highest Temperature 135 | . 135 94 26 . 86 . 118 Average Temperature 35 | . 27 42 11 . 39 . 49 Received Heat Transfer 826 | . 192 . 33 . 162 6 433 Siege Activations . | . . . . . . . . Martial Activations . | . . . . . . . . Shielding Activations . | . . . . . . . . Robots Disrupted . | . . . . . . . . Combat Hostiles . | . . . . . . . . Robots Corrupted . | . . . . . . . . Combat Hostiles . | . . . . . . . . Parts Fried . | . . . . . . . . Impact Corruptions . | . . . . . . . . Robots Melted . | . . . . . . . . Combat Hostiles . | . . . . . . . . Parts Melted . | . . . . . . . . Heat Transferred 700 | . 700 . . . . . . Parts Sabotaged . | . . . . . . . . Parts Stolen . | . . . . . . . . Parts Stripped . | . . . . . . . . Power Chain Reactions 1 | . . . 1 . . . . Alert | -11 -10 -10 -9 -9 -8 -7 -7 ------- Run | Yrd Mat Min Mat Min Mat Fac Gar Maximum Alert Level 1 | . . . 1 . . . 1 Low Security (%) 90 | 100 100 100 43 100 100 100 80 Level 1 9 | . . . 56 . . . 19 Level 2 . | . . . . . . . . Level 3 . | . . . . . . . . Level 4 . | . . . . . . . . Level 5 . | . . . . . . . . High Security . | . . . . . . . . Max Security . | . . . . . . . . Peak Influence 377 | 5 50 195 377 136 122 184 213 Initial 136 | . . . 52 136 48 46 128 Average 88 | 1 9 125 231 133 71 73 146 Influence Increases 1538 | 10 157 285 509 . 174 258 145 Destroy 0b10 Robot/C 580 | . 100 180 220 . . . 80 Destroy 0b10 Robot/NC 45 | 10 20 5 5 . 5 . . Destroy Leader 114 | . 24 30 60 . . . . Allied During Kill 42 | . . . 42 . . . . Successful Hack 21 | . 13 . . . 5 3 . Disable Machine 30 | . . . 30 . . . . Anti-Garrison Action 50 | . . . . . . . 50 Destroy Structure 206 | . . 70 77 . 44 . 15 Partial Spotted 90 | . . . 30 . 30 30 . Lose Combat Pursuer 360 | . . . 45 . 90 225 . Influence Decreases 1385 | 10 157 150 293 225 198 176 176 Entered New Map 488 | . . . 83 215 78 56 56 Time Decay 589 | 10 129 140 110 10 70 120 . Lost Part 248 | . 28 10 40 . 50 . 120 Lost Ally 60 | . . . 60 . . . . Squads Dispatched 5 | . 1 . 1 . . 3 . Investigation 3 | . . . . . . 3 . Extermination . | . . . . . . . . Reinforcement 2 | . 1 . 1 . . . . Assault . | . . . . . . . . Garrison . | . . . . . . . . Intercept . | . . . . . . . . Searches Triggered . | . . . . . . . . Construction Impeded . | . . . . . . . . Haulers Reinforced . | . . . . . . . . Active Scanning Responses . | . . . . . . . . Cargo Convoy Interrupts . | . . . . . . . . Stealth | -11 -10 -10 -9 -9 -8 -7 -7 --------- Run | Yrd Mat Min Mat Min Mat Fac Gar Distress Signals 3 | . 1 . 1 . . 1 . Communications Jammed . | . . . . . . . . Distress Signals . | . . . . . . . . Times Spotted 83 | . 10 8 14 . 19 14 18 Peak Tracking Total 15 | . 3 3 5 . 15 8 15 Tactical Retreats 9 | . . . 2 . 2 5 . Traps | -11 -10 -10 -9 -9 -8 -7 -7 ------- Run | Yrd Mat Min Mat Min Mat Fac Gar Traps Triggered 7 | . 3 . . . . 2 2 Indirectly . | . . . . . . . . Trap Hack Attempts . | . . . . . . . . Triggered . | . . . . . . . . Disarmed . | . . . . . . . . Reprogrammed . | . . . . . . . . Reused . | . . . . . . . . Traps Extracted . | . . . . . . . . Installed . | . . . . . . . . Triggered . | . . . . . . . . Machines | -11 -10 -10 -9 -9 -8 -7 -7 ---------- Run | Yrd Mat Min Mat Min Mat Fac Gar Machines Disabled 3 | . . . 2 . . . 1 Max in Single Turn 2 | . . . 2 . . . 1 Garrison Relay 1 | . . . . . . . 1 Machines Repaired . | . . . . . . . . Machines Dismantled . | . . . . . . . . Machines Sabotaged . | . . . . . . . . Overloaded Fab Kills . | . . . . . . . . Hacking | -11 -10 -10 -9 -9 -8 -7 -7 --------- Run | Yrd Mat Min Mat Min Mat Fac Gar Machines Accessed 15 | . 5 . 2 . 4 4 . Terminals 10 | . 4 . 1 . 3 2 . Fabricators 1 | . . . . . . 1 . Repair Stations . | . . . . . . . . Recycling Units 2 | . 1 . 1 . . . . Scanalyzers 1 | . . . . . 1 . . Garrison Access 1 | . . . . . . 1 . Total Hacks 38 | . 17 . 6 . 6 9 . Successful 18 | . 9 . 1 . 5 3 . Failed 20 | . 8 . 5 . 1 6 . Catastrophic 2 | . 1 . . . . 1 . Database Lockouts . | . . . . . . . . Manual 23 | . 11 . 4 . 3 5 . Terminals 26 | . 14 . 3 . 4 5 . Fabricators 2 | . . . . . . 2 . Repair Stations . | . . . . . . . . Recycling Units 6 | . 3 . 3 . . . . Scanalyzers 2 | . . . . . 2 . . Garrison Access 2 | . . . . . . 2 . Terminal Hacks 4 | . 4 . . . . . . Prototype ID Bank 2 | . 2 . . . . . . Branch Access Points 1 | . 1 . . . . . . Terminal Index 1 | . 1 . . . . . . Fabricator Hacks 2 | . . . . . . 2 . Load Schematic 1 | . . . . . . 1 . Build 1 | . . . . . . 1 . Repair Station Hacks . | . . . . . . . . Recycling Unit Hacks . | . . . . . . . . Scanalyzer 2 | . . . . . 2 . . Insert Component 1 | . . . . . 1 . . Analyze 1 | . . . . . 1 . . Garrison Access Hacks 1 | . . . . . . 1 . Unlock Access 1 | . . . . . . 1 . Unauthorized Hacks 9 | . 5 . 1 . 3 . . Terminals 7 | . 3 . 1 . 3 . . Botnet 7 | . 3 . 1 . 3 . . Fabricators . | . . . . . . . . Repair Stations . | . . . . . . . . Recycling Units 2 | . 2 . . . . . . Reject 1 | . 1 . . . . . . Mask 1 | . 1 . . . . . . Scanalyzers . | . . . . . . . . Garrison Access . | . . . . . . . . Data Cores Recovered 1 | . . . . . 1 . . Used . | . . . . . . . . Hacking Detections 15 | . 5 . 2 . 4 4 . Full Trace Events 3 | . . . . . . 3 . Feedback Events . | . . . . . . . . Feedback Blocked . | . . . . . . . . Robot Schematics Acquired . | . . . . . . . . Robots Built . | . . . . . . . . Authchips . | . . . . . . . . Time . | . . . . . . . . Total Robot Build Rating . | . . . . . . . . Part Schematics Acquired 1 | . . . . . 1 . . Parts Built 2 | . . . . . . 2 . Authchips . | . . . . . . . . Time 51 | . . . . . . 51 . Total Part Build Rating 2 | . . . . . . 2 . Part Studies Acquired . | . . . . . . . . Parts Repaired . | . . . . . . . . Time . | . . . . . . . . Parts Recycled . | . . . . . . . . Recycled Matter . | . . . . . . . . Retrieved Matter . | . . . . . . . . Retrieved Components . | . . . . . . . . Parts Scanalyzed 1 | . . . . . 1 . . Part Schematics Acquired 1 | . . . . . 1 . . Parts Damaged . | . . . . . . . . Bothacking | -11 -10 -10 -9 -9 -8 -7 -7 ------------ Run | Yrd Mat Min Mat Min Mat Fac Gar Used RIF Installer . | . . . . . . . . Robots Hacked . | . . . . . . . . Non-combat . | . . . . . . . . Combat . | . . . . . . . . Robot Hacks Applied . | . . . . . . . . Relay Couplers Released 5 | . . . . . . . 5 Machine Destruction 5 | . . . . . . . 5 Fabnet Peak Effective % . | . . . . . . . . Robots Rewired . | . . . . . . . . Allies Hacked . | . . . . . . . . Hacks Repelled . | . . . . . . . . Allies | -11 -10 -10 -9 -9 -8 -7 -7 -------- Run | Yrd Mat Min Mat Min Mat Fac Gar Total Allies 3 | . . 3 . . . . . Largest Group 3 | . . 3 3 . . . . Highest-Rated Group 40 | . . 40 40 . . . . Highest-Rated Ally 16 | . . 16 16 . . . . Total Orders . | . . . . . . . . Ally Attacks 36 | . . . 36 . . . . Total Damage 415 | . . . 415 . . . . Kills 6 | . . . 6 . . . . Allies Corrupted . | . . . . . . . . Allies Melted . | . . . . . . . . Intel | -11 -10 -10 -9 -9 -8 -7 -7 ------- Run | Yrd Mat Min Mat Min Mat Fac Gar Active Infowar (turns) 666 | 18 316 314 18 . . . . Optics 120 | . 120 . . . . . . Terrain 151 | 18 133 . . . . . . T.N.C. 447 | . 115 314 18 . . . . Robot Analysis Total . | . . . . . . . . Derelict Logs Recovered . | . . . . . . . . Drone Launches . | . . . . . . . . Drone Recoveries . | . . . . . . . . Exploration | -11 -10 -10 -9 -9 -8 -7 -7 ------------- Run | Yrd Mat Min Mat Min Mat Fac Gar Turns Passed 1644 | 114 449 314 220 26 150 250 121 Spaces Moved 2800 | 73 372 616 458 84 371 635 191 Core 80 | 6 1 73 . . . . . Treads 5 | 3 2 . . . . . . Legs . | . . . . . . . . Wheels 114 | 64 50 . . . . . . Hover 370 | . 319 51 . . . . . Flight 2231 | . . 492 458 84 371 635 191 Fastest Speed 28 | 50 56 37 31 31 29 32 28 Average Speed 40 | 98 72 40 32 31 29 32 28 Slowest Speed 180 | 160 180 60 37 31 32 32 34 Overloaded Moves . | . . . . . . . . Propulsion Burnouts . | . . . . . . . . Robots Hopped 26 | . . 6 12 . 1 4 3 Potential Cave-ins 3 | . . . . . 3 . . Cave-ins Triggered . | . . . . . . . . Exploration Rate (%) 35 | 4 53 80 30 28 46 16 27 Regions Visited 7 Branch Regions 2 Pre-discovered Areas . | . . . . . . . . Known Exits Taken 2 | . 1 . . . . 1 . Unknown Exits Taken 5 | 1 . 1 1 1 1 . . Scrap Searched 2 | . . 2 . . . . . Spaces Dug 46 | . . . 15 . 31 . . Terrain Destroyed 206 | . . 74 78 . 54 . . Melee . | . . . . . . . . Projectile . | . . . . . . . . AOE 206 | . . 74 78 . 54 . . Terrain Rammed . | . . . . . . . . Walls Destroyed . | . . . . . . . . Machines Disabled . | . . . . . . . . Actions | -11 -10 -10 -9 -9 -8 -7 -7 --------- Run | Yrd Mat Min Mat Min Mat Fac Gar Total 3144 | 95 482 667 496 83 406 680 235 Wait 82 | . 6 28 23 . 12 8 5 Move 2748 | 72 371 605 436 83 368 627 186 Hop 20 | . . 4 9 . 1 4 2 Pick Up 65 | 6 26 8 6 . 5 6 8 Fast Attach 18 | 7 3 2 4 . 2 . . Attach 25 | . 7 2 4 . 4 . 8 Detach 5 | . 2 1 1 . . . 1 Swap 11 | . 7 1 . . 3 . . Drop 40 | . 19 7 1 . 6 5 2 Fire 88 | 10 41 9 12 . 5 . 11 Melee . | . . . . . . . . Ram . | . . . . . . . . Kick . | . . . . . . . . Crush . | . . . . . . . . Escape Stasis 42 | . . . . . . 30 12 Rewire . | . . . . . . . . Trap . | . . . . . . . . Miscellaneous . | . . . . . . . . Route ------- -11/Scrapyard -10/Materials (discovered 3 exits: *Mat / *Min x2) -10/Mines -9/Materials -9/Mines -8/Materials -7/Factory -7/Garrison History --------- Turn | Location | Event 8 | -11/Scrapyard | Discovered new exit (range 15) 115 | -11/Scrapyard | Entered Materials 318 | -10/Materials | Discovered new exit (range 5) 349 | -10/Materials | Identified exit to Mines 564 | -10/Materials | Entered Mines 681 | -10/Mines | Met a Derelict bent on vengeance 712 | -10/Mines | Build established: Mutant 774 | -10/Mines | A weapon hastily lodged in a ceiling crevice suddenly fell to the ground 788 | -10/Mines | Discovered new exit (range 6) 794 | -10/Mines | Assisted by bots powering up and referring to "LRC-V3" 878 | -10/Mines | Entered Materials 878 | -9/Materials | Accompanied by 3 allies 878 | -9/Materials | Evolved 2 slots: Propulsion x2 960 | -9/Materials | Discovered new exit (range 11) 1098 | -9/Materials | Entered Mines 1122 | -9/Mines | Discovered new exit (range 8) 1124 | -9/Mines | Entered Materials 1124 | -8/Materials | Evolved 2 slots: Power x1, Utility x1 1269 | -8/Materials | Discovered new exit (range 15) 1274 | -8/Materials | Entered Factory 1274 | -7/Factory | Evolved 2 slots: Utility x2 1294 | -7/Factory | Lost 4 parts (2p1n1u) 1328 | -7/Factory | Fabricated Flight Unit (x2) 1524 | -7/Factory | Identified exit to Garrison 1524 | -7/Factory | Entered Garrison 1528 | -7/Garrison | Triggered checkpoint 1543 | -7/Garrison | Build established: Sprinter 1578 | -7/Garrison | Lost 4 parts (2n2w) 1614 | -7/Garrison | Garrison Relay disabled 1618 | -7/Garrison | Triggered checkpoint 1632 | -7/Garrison | Triggered checkpoint 1645 | -7/Garrison | Self-destructed Last Messages --------------- 01629_ Field strength at 82. 01630_ Field strength at 76. 01632_ Beams of light sweep through the air. An alarm sounds. Garrison Door activated. 01633_ Critical hit (Destroy). 01633_ Cesium-ion Thruster destroyed. 01637_ Dropped Hcp. Battery. 01637_ Lgt. Nuclear Core destroyed. 01638_ Field strength at 47. 01639_ S-27 Virus destroyed. 01639_ Lgt. Nuclear Core destroyed. 01639_ Mak. Shrapnel Gun destroyed. 01640_ Imp. Shield Generator destroyed. 01640_ Stasis field depleted. 01642_ Critical hit (Burn: +37). 01642_ Flight Unit destroyed. 01644_ Critical hit (Burn: +37). 01644_ Assault Cannon destroyed. 01644_ Critical hit (Burn: +37). 01644_ VTOL Module destroyed. Map ----- +----------------------------------------------------+ | ????????# #???# ## !#??????????????????????????? | | ????????# #???# #??????????????????????????? | | ????????# #???# ## !#??????????????????????????? | | ????????# #???# #####??????????????????????????? | | ????????# ^ #???# #??????????????????????????????? | | ????????# #???# #??????????????????????????????? | | ######### ##### ######?????????????????????????? | | " #?????????????????????????? | | = = " #?????????????????????????? | | ######### ######### #?????????????????????????? | | #???????# #???????# #?????????????????????????? | | #"#?????# #???????# #????????? #??????????????? | | !"#?????# #???????# #???????? #??????????????? | | !!#?????# #???????# #?#####?? #??????????????? | | !"#?????# #???????# #? #? #??????????????? | | #"#?????# ############# ## #??????????????? | | ###?????# #??????????????? | | #???????# #??????????????? | | ????????# #??????????????? | | ????????############ ## ## #??????????????? | | ?????????????????### ## ## ###????????????? | | ?????????????????# #????????????? | | ??????????????????? s g #????????????? | | ???????????????????" s %[ g % #????????????? | | ???????????????????" s g g #????????????? | | ???????????????????# ##@ g## #??????????????? | | ???????????????????# ##! #? #??????????????? | | ?????????????????? ?????????????? | | ???????????????? g ???????????? | | ?????????????? gg ####???????????? | | ????????????? ########### ######??????????????? | | ????????????????????????# g #???????????????????? | | ????????????????????????######???????????????????? | | ?????????????????????????????????????????????????? | | ?????????????????????????????????????????????????? | | ?????????????????????????????????????????????????? | | ?????????????????????????????????????????????????? | | ?????????????????????????????????????????????????? | | ?????????????????????????????????????????????????? | | ?????????????????????????????????????????????????? | | ?????????????????????????????????????????????????? | | ?????????????????????????????????????????????????? | | ?????????????????????????????????????????????????? | | ?????????????????????????????????????????????????? | | ?????????????????????????????????????????????????? | | ?????????????????????????????????????????????????? | | ?????????????????????????????????????????????????? | | ?????????????????????????????????????????????????? | | ?????????????????????????????????????????????????? | | ?????????????????????????????????????????????????? | +----------------------------------------------------+ Best States ------------- Heat Dissipation 39 Energy Generation 23 Energy Capacity 250 Matter Stores 300 Matter Capacity 300 Sight Range 18 Terrain Scan Range 16 Terrain Scan Density 10 Additional Mass Support 9 Armor Coverage 150 Evasion (%) 64 Targeting Accuracy 5 Recoil Reduction 1 Item Schematics ----------------- Flight Unit | -8/Materials | Scanalyzed Robot Schematics ------------------ None Fabricated ------------ Flight Unit | x2 | -7/Factory Repaired ---------- Nothing Studied --------- None Alien Tech Used ----------------- None Achievements -------------- Party Time Challenges ------------ None Game ------ Seed JunkHypervelocityObfuscator Manual? 0 Play Time 00:37:04 Cumulative 139.9 hours Start 2026.03.20 @ 14:00:04 End 2026.03.21 @ 13:57:14 Sessions 5 Manual Loads 0 Difficulty Rogue Special Mode None Game No. 163 Rogue 163 Adventurer 0 Explorer 0 Win Type - Total 1 Types 1/0/0/0/0/0/0/0/0/0 Lore% 27 Gallery% 46 Achievement% 33 Wizard Run 0 Options --------- Layout 0 ASCII 0 Keyboard 0 Movement Mouse Keybinds 0 Fullscreen 1 Font 24/Smallcaps Map View 76x50 Zoom Use 0% Tactical HUD 1 Map Filters NONE Filters NONE Steam 1 RUN: 4229fb31-6e7f-420c-85ab-67575f507e3e